bitfinex/quotes_BTCUSD_20250308
["timestamp","ask_amount","ask_price","bid_price","bid_amount"]
[1741454365021,0.19738,86128.0,86127.0,4e-05]
[1741454365439,0.01161,86128.0,86127.0,4e-05]
[1741454366593,0.80019485,86128.0,86127.0,8e-05]
[1741454366806,0.9072184,86128.0,86127.0,8e-05]
[1741454366993,0.40945085,86128.0,86127.0,8e-05]
[1741454367211,0.011611,86123.0,86122.0,0.00011629]
[1741454367411,0.197432,86105.0,86104.0,0.0003396]
[1741454367544,0.497432,86105.0,86104.0,0.0003396]
[1741454367751,0.59527285,86105.0,86104.0,0.0003396]
[1741454368173,0.580732,86105.0,86104.0,0.0003396]
[1741454368393,0.59527285,86105.0,86104.0,0.0003396]
[1741454368942,1.2752216,86105.0,86104.0,0.0003396]
[1741454369223,1.2490476,86105.0,86104.0,0.0003396]
[1741454369736,1.2975476,86105.0,86104.0,0.0003396]
[1741454369888,1.1577576,86105.0,86104.0,0.0003396]
[1741454370092,0.011614,86102.0,86101.0,6e-07]
[1741454370295,0.02615485,86102.0,86101.0,0.00011691]
[1741454371104,0.55275485,86102.0,86101.0,0.00011691]
[1741454374048,0.011614,86102.0,86101.0,0.00011691]
[1741454374471,0.14912,86108.0,86103.0,0.011613]
[1741454374673,0.14912,86108.0,86101.0,0.00015691]
[1741454374674,0.011613,86107.0,86101.0,0.00015691]
[1741454375081,0.197432,86106.0,86102.0,0.00846487]
[1741454375252,0.197424,86109.0,86102.0,0.00846487]
[1741454375620,0.22356,86130.0,86102.0,0.00846487]
[1741454375621,0.011611,86122.0,86114.0,0.011612]
[1741454375923,0.197388,86125.0,86114.0,0.011612]
[1741454375924,0.011611,86124.0,86117.0,0.011612]
[1741454376125,0.011611,86122.0,86117.0,0.011612]
[1741454376328,0.011611,86122.0,86118.0,0.00841571]
[1741454376329,0.011611,86121.0,86118.0,0.00841571]
[1741454376553,0.011611,86119.0,86118.0,0.00841571]
[1741454376755,0.011611,86121.0,86114.0,0.197411]
[1741454376986,0.011612,86116.0,86109.0,0.011613]
[1741454377139,0.011612,86117.0,86115.0,0.00842088]
[1741454377342,0.011612,86117.0,86092.0,0.185846]
[1741454377343,0.185806,86111.0,86092.0,0.185846]
[1741454377569,0.197418,86111.0,86096.0,0.011614]
[1741454377790,0.197433,86105.0,86099.0,0.233774]
[1741454378297,0.011613,86104.0,86099.0,0.22216]
[1741454378509,0.011613,86103.0,86099.0,0.22216]
[1741454378725,0.011613,86104.0,86099.0,0.233774]
[1741454379071,0.01889601,86104.0,86099.0,0.233774]
[1741454379309,0.00728301,86104.0,86100.0,0.011614]
[1741454379545,0.00728301,86104.0,86100.0,0.197442]
[1741454379749,0.011614,86102.0,86099.0,0.22216]
[1741454380175,0.00728301,86104.0,86099.0,0.22216]
[1741454380436,0.00728301,86104.0,86103.0,0.197436]
[1741454380682,0.011613,86109.0,86103.0,0.011613]
[1741454380913,0.011613,86106.0,86101.0,0.18632351]
[1741454381030,0.197431,86106.0,86101.0,0.00049651]
[1741454381444,0.185813,86108.0,86102.0,0.0084482]
[1741454381690,0.21636079,86108.0,86102.0,0.0084482]
[1741454381916,0.197433,86105.0,86102.0,0.0084482]
[1741454382121,0.197432,86106.0,86102.0,0.0084482]
[1741454382340,0.011613,86105.0,86102.0,0.0084482]
[1741454382524,0.01893479,86108.0,86107.0,0.197428]
[1741454382741,0.011611,86123.0,86117.0,0.185792]
[1741454382866,0.011611,86123.0,86117.0,0.2196]
[1741454383071,0.011611,86120.0,86118.0,0.00842292]
[1741454383384,0.011611,86121.0,86118.0,0.00842292]
[1741454383568,0.185776,86125.0,86118.0,0.02003392]
[1741454383787,0.185754,86136.0,86126.0,0.01161]
[1741454383788,0.011609,86135.0,86126.0,0.01161]
[1741454384006,0.011609,86138.0,86130.0,0.185764]
[1741454384242,0.23096,86151.0,86137.0,0.011609]
[1741454384243,0.011608,86143.0,86137.0,0.011609]
[1741454384453,0.011608,86144.0,86139.0,0.011609]
[1741454384658,0.011608,86146.0,86140.0,0.011609]
[1741454384864,0.011608,86145.0,86140.0,0.01996763]
[1741454385089,0.011608,86145.0,86140.0,0.00835863]
[1741454385291,0.011608,86142.0,86140.0,0.00835863]
[1741454385532,0.1974572,86145.0,86140.0,0.00835863]
[1741454385835,0.011608,86144.0,86141.0,0.00831524]
[1741454386041,0.011608,86142.0,86141.0,0.00831524]
[1741454386276,0.011609,86138.0,86134.0,0.219]
[1741454386483,0.011608,86141.0,86134.0,0.219]
[1741454386690,0.011609,86139.0,86135.0,0.00832559]
[1741454387280,0.197349,86141.0,86135.0,0.01993459]
[1741454387486,0.011609,86137.0,86135.0,0.00832559]
[1741454387838,0.197361,86136.0,86135.0,0.00832559]
[1741454388351,0.011609,86136.0,86135.0,0.00832559]
[1741454388693,0.011607,86151.0,86138.0,0.011609]
[1741454388901,0.000286,86145.0,86139.0,0.00116078]
[1741454389051,0.000286,86145.0,86142.0,0.011608]
[1741454389263,0.000286,86145.0,86143.0,0.197345]
[1741454389455,0.000286,86145.0,86143.0,0.20560267]
[1741454389666,0.000286,86145.0,86144.0,0.011608]
[1741454389866,0.000286,86145.0,86143.0,0.00825767]
[1741454390211,0.000286,86145.0,86144.0,0.00825594]
[1741454390422,0.000286,86145.0,86144.0,0.01986394]
[1741454390584,0.000286,86145.0,86144.0,0.02102464]
[1741454391402,0.000286,86145.0,86144.0,0.01986394]
[1741454392600,0.000286,86145.0,86144.0,0.00825594]
[1741454392776,0.000286,86145.0,86144.0,0.01801036]
[1741454392979,0.000286,86145.0,86144.0,0.02136242]
[1741454393186,0.000286,86145.0,86144.0,0.01798716]
[1741454393396,0.011894,86145.0,86144.0,0.01802716]
[1741454393800,0.011894,86145.0,86144.0,0.00979442]
[1741454394429,0.011894,86145.0,86144.0,4e-05]
[1741454394863,0.000286,86145.0,86144.0,4e-05]
[1741454395447,0.000286,86145.0,86144.0,0.19854368]
[1741454395657,0.000286,86145.0,86144.0,0.20672155]
[1741454396270,0.000286,86145.0,86144.0,0.20556099]
[1741454398251,0.000286,86145.0,86144.0,0.00821799]
[1741454399069,0.011894,86145.0,86144.0,0.00821799]
[1741454399275,0.000286,86145.0,86144.0,0.00821799]
[1741454399499,0.011894,86145.0,86144.0,0.22409799]
[1741454399861,0.000286,86145.0,86144.0,0.22409799]
[1741454400462,0.000286,86145.0,86144.0,0.23570599]
[1741454402554,0.000286,86145.0,86144.0,0.55024684]
[1741454402977,0.000286,86145.0,86144.0,0.57524684]
[1741454403181,0.000286,86145.0,86144.0,0.69864684]
[1741454403366,0.000286,86145.0,86144.0,0.83934684]
[1741454404239,0.000286,86145.0,86144.0,0.86472472]
[1741454405053,0.000286,86145.0,86144.0,0.81472472]
[1741454405387,0.000286,86145.0,86144.0,0.73602472]
[1741454405520,0.000286,86145.0,86144.0,0.69032472]
[1741454405878,0.000286,86145.0,86144.0,0.70982203]
[1741454406172,0.011606,86156.0,86148.0,0.185725]
[1741454406387,0.011607,86154.0,86148.0,0.011607]
[1741454406598,0.00055717,86157.0,86153.0,0.011607]
[1741454406933,0.00055717,86157.0,86154.0,0.00809979]
[1741454407137,0.00055717,86157.0,86154.0,0.011607]
[1741454407373,0.00055717,86157.0,86156.0,0.011606]
[1741454407577,0.00055717,86157.0,86155.0,0.19380906]
[1741454407578,0.197315,86156.0,86155.0,0.00809806]
[1741454407780,0.197333,86148.0,86147.0,0.21588]
[1741454408413,0.197341,86145.0,86144.0,0.04491519]
[1741454408681,0.197341,86145.0,86144.0,4e-05]
[1741454409738,0.011607,86148.0,86144.0,4e-05]
[1741454409937,0.011608,86147.0,86144.0,4e-05]
[1741454410377,0.011607,86154.0,86144.0,4e-05]
[1741454410378,0.0001702,86161.0,86156.0,0.197315]
[1741454410582,0.0001702,86161.0,86156.0,0.19847542]
[1741454411637,0.0001702,86161.0,86156.0,0.01837267]
[1741454411814,0.0001702,86161.0,86156.0,0.20408167]
[1741454412469,0.0001702,86161.0,86156.0,0.00676667]
[1741454412673,0.01216317,86157.0,86156.0,0.04774384]
[1741454412875,0.00055717,86157.0,86156.0,0.04097717]
[1741454413076,0.00055717,86157.0,86156.0,0.05930691]
[1741454413655,0.00055717,86157.0,86156.0,0.04770091]
[1741454413808,0.00055717,86157.0,86156.0,0.05930691]
[1741454414009,0.00055717,86157.0,86156.0,0.06046743]
[1741454415008,0.00055717,86157.0,86156.0,0.35901567]
[1741454415162,0.00055717,86157.0,86156.0,0.35785515]
[1741454415370,0.00055717,86157.0,86156.0,0.38285515]
[1741454415947,0.0003398,86165.0,86164.0,0.51183785]
[1741454416179,0.0003398,86165.0,86164.0,0.83905785]
[1741454416457,0.0003398,86165.0,86164.0,0.84574877]
[1741454417361,0.0003398,86165.0,86164.0,0.87073333]
[1741454417562,0.1747702,86176.0,86166.0,0.011605]
[1741454417793,0.011604,86170.0,86167.0,0.00024414]
[1741454417988,0.197286,86169.0,86167.0,0.00666441]
[1741454418195,0.011605,86168.0,86164.0,0.23650456]
[1741454418444,0.011605,86169.0,86164.0,0.23650456]
[1741454418616,0.00011617,86172.0,86166.0,0.197293]
[1741454418815,0.00011617,86172.0,86171.0,0.197281]
[1741454419418,0.00011617,86172.0,86169.0,0.185681]
[1741454419620,0.00011617,86172.0,86168.0,0.011605]
[1741454419862,0.00011617,86172.0,86167.0,0.03658956]
[1741454419863,0.00011617,86172.0,86167.0,0.02498456]
[1741454420284,0.00011617,86172.0,86171.0,0.197281]
[1741454420479,0.00011617,86172.0,86171.0,0.19844113]
[1741454420685,0.00011617,86172.0,86171.0,0.36198198]
[1741454420798,0.00296686,86192.0,86172.0,0.01454085]
[1741454421008,0.197235,86192.0,86182.0,0.011603]
[1741454421240,0.011602,86190.0,86184.0,0.011603]
[1741454422046,0.011602,86189.0,86183.0,0.20984]
[1741454422506,0.011602,86189.0,86184.0,4e-05]
[1741454423188,0.011602,86188.0,86184.0,4e-05]
[1741454423621,0.011602,86185.0,86184.0,4e-05]
[1741454424556,0.006602,86185.0,86184.0,4e-05]
[1741454425249,0.085602,86185.0,86184.0,4e-05]
[1741454425809,0.133202,86185.0,86184.0,4e-05]
[1741454428916,0.011602,86188.0,86184.0,8e-05]
[1741454429074,0.011602,86187.0,86184.0,8e-05]
[1741454429272,0.0005702,86199.0,86191.0,0.011602]
[1741454429478,0.00011615,86198.0,86193.0,0.011601]
[1741454429676,0.011601,86197.0,86192.0,0.21414462]
[1741454429879,0.011601,86197.0,86194.0,0.00662117]
[1741454430084,0.00011615,86198.0,86194.0,0.00662117]
[1741454430508,0.011601,86196.0,86194.0,0.00662117]
[1741454430710,0.011601,86195.0,86192.0,0.20752]
[1741454430913,0.011601,86193.0,86192.0,0.20752]
[1741454431113,0.19723,86193.0,86192.0,0.20752]
[1741454431325,0.00011615,86198.0,86184.0,0.011683]
[1741454431326,0.01171715,86198.0,86188.0,0.20636]
[1741454431529,0.011601,86197.0,86190.0,0.011602]
[1741454431733,0.011601,86197.0,86185.0,0.185647]
[1741454431734,0.197209,86185.0,86184.0,0.206]
[1741454433585,0.011602,86185.0,86184.0,0.206]
[1741454433791,0.011602,86189.0,86184.0,0.20604]
[1741454434536,0.011602,86187.0,86184.0,0.20604]
[1741454434739,0.27838,86214.0,86184.0,0.20604]
[1741454434740,0.00011615,86198.0,86193.0,0.011601]
[1741454434978,0.00011615,86198.0,86195.0,0.185624]
[1741454435207,0.00011615,86198.0,86194.0,0.011601]
[1741454435359,0.00011615,86198.0,86197.0,0.011601]
[1741454435542,0.00011615,86198.0,86197.0,0.01276081]
[1741454436150,0.00011615,86198.0,86197.0,0.14300166]
[1741454436849,0.00011615,86198.0,86197.0,0.14304166]
[1741454437062,0.00011615,86198.0,86197.0,0.46804166]
[1741454437276,0.0005702,86199.0,86197.0,0.46804166]
[1741454437277,2e-07,86199.0,86198.0,0.53676085]
[1741454437487,2e-07,86199.0,86198.0,0.53716719]
[1741454437689,2e-07,86199.0,86198.0,0.51216719]
[1741454437929,2e-07,86199.0,86198.0,0.51176085]
[1741454438163,2e-07,86199.0,86198.0,0.51194165]
[1741454438640,2e-07,86199.0,86198.0,0.51176085]
[1741454439711,2e-07,86199.0,86198.0,0.62746085]
[1741454441684,2e-07,86199.0,86198.0,0.63685031]
[1741454442069,2e-07,86199.0,86198.0,0.33685031]
[1741454443650,2e-07,86199.0,86198.0,0.36212624]
[1741454444669,2e-07,86199.0,86198.0,0.36185031]
[1741454445079,2e-07,86199.0,86198.0,0.8657292]
[1741454445286,2e-07,86199.0,86198.0,0.40724946]
[1741454445609,2e-07,86199.0,86198.0,0.40713313]
[1741454447432,2e-07,86199.0,86198.0,0.72167398]
[1741454447656,2e-07,86199.0,86198.0,0.74667398]
[1741454447793,2e-07,86199.0,86198.0,0.72511809]
[1741454448201,2e-07,86199.0,86198.0,0.75011809]
[1741454448397,2e-07,86199.0,86198.0,0.8904815]
[1741454448604,1e-06,86207.0,86206.0,0.60814185]
[1741454448843,8e-07,86219.0,86218.0,0.011598]
[1741454449051,8e-07,86219.0,86218.0,0.67660439]
[1741454449251,8e-07,86219.0,86218.0,0.67585126]
[1741454449698,8e-07,86219.0,86218.0,0.75165126]
[1741454450249,8e-07,86219.0,86218.0,0.75124492]
[1741454450855,8e-07,86219.0,86218.0,0.75429501]
[1741454451197,0.0004,86239.0,86228.0,0.522151]
[1741454451398,0.00018613,86229.0,86228.0,0.53669185]
[1741454451615,0.00018613,86229.0,86228.0,0.54592733]
[1741454452217,0.00018613,86229.0,86228.0,0.52092733]
[1741454452479,1.29987121,86240.0,86230.0,0.01454085]
[1741454452688,1.29987121,86240.0,86239.0,0.011595]
[1741454453000,1.29987121,86240.0,86239.0,0.22369585]
[1741454453210,1.29987121,86240.0,86239.0,0.21837272]
[1741454454929,1.29987121,86240.0,86239.0,0.30571277]
[1741454455138,1.29987121,86240.0,86239.0,0.63071277]
[1741454455358,1.29987121,86240.0,86239.0,0.75994241]
[1741454455359,1.09274749,86240.0,86239.0,0.75994241]
[1741454455578,0.95903362,86240.0,86239.0,0.79736642]
[1741454455816,0.14326822,86240.0,86239.0,0.80588826]
[1741454456018,0.14201213,86240.0,86239.0,0.80588826]
[1741454456441,0.0051199,86252.0,86239.0,0.80588826]
[1741454456442,0.0051199,86252.0,86251.0,0.361594]
[1741454456685,0.0001698,86272.0,86251.0,0.361594]
[1741454456686,0.0001698,86272.0,86260.0,0.025]
[1741454456894,0.0001698,86272.0,86271.0,0.02613185]
[1741454457098,0.0001698,86272.0,86266.0,0.011592]
[1741454457099,0.011591,86270.0,86260.0,0.28159873]
[1741454457311,0.00055681,86272.0,86265.0,0.01454085]
[1741454457532,0.00055681,86272.0,86271.0,0.01205443]
[1741454457744,0.00055681,86272.0,86271.0,0.02613185]
[1741454457959,0.00055681,86272.0,86271.0,0.02729062]
[1741454458160,0.00055681,86272.0,86271.0,0.03934055]
[1741454458625,0.00055681,86272.0,86271.0,0.11176972]
[1741454458838,0.00055681,86272.0,86271.0,0.13676972]
[1741454459052,0.00055681,86272.0,86271.0,0.11061095]
[1741454459496,0.00055681,86272.0,86271.0,0.13647121]
[1741454459927,0.00055681,86272.0,86271.0,0.43647121]
[1741454460163,0.00055681,86272.0,86271.0,0.66963244]
[1741454460380,0.07175019,86309.0,86290.0,0.18542]
[1741454460589,0.011586,86304.0,86291.0,0.00115859]
[1741454460798,0.011587,86302.0,86291.0,0.00927874]
[1741454461006,0.011587,86302.0,86290.0,0.011588]
[1741454461230,0.196984,86301.0,86292.0,0.0092774]
[1741454461504,0.011586,86307.0,86293.0,0.011588]
[1741454461703,0.00011614,86309.0,86293.0,0.01043471]
[1741454461887,0.00011614,86309.0,86304.0,0.011586]
[1741454462123,0.00011614,86309.0,86305.0,0.22223845]
[1741454462332,0.19708414,86309.0,86305.0,0.22223845]
[1741454462553,0.011586,86306.0,86305.0,0.23033488]
[1741454462771,0.011586,86306.0,86305.0,0.00925488]
[1741454462978,0.196996,86296.0,86295.0,0.22104]
[1741454463813,0.0808,86297.0,86295.0,0.22104]
[1741454464038,0.0808,86308.0,86296.0,0.00115867]
[1741454464246,0.01170214,86309.0,86297.0,0.01274556]
[1741454464464,0.011587,86301.0,86295.0,0.31817066]
[1741454464673,0.011588,86296.0,86295.0,0.31817066]
[1741454464879,0.011588,86296.0,86295.0,0.24574149]
[1741454465099,0.092388,86296.0,86295.0,0.24574149]
[1741454465323,0.197027,86282.0,86281.0,0.10321647]
[1741454465520,0.197027,86282.0,86278.0,3.1e-07]
[1741454465521,0.01159,86279.0,86278.0,3.1e-07]
[1741454466189,0.05739,86279.0,86278.0,3.1e-07]
[1741454466403,0.197105,86248.0,86247.0,0.37324]
[1741454466664,0.197105,86248.0,86247.0,0.22444]
[1741454467140,0.185545,86233.0,86229.0,0.00040634]
[1741454467350,0.011597,86227.0,86226.0,0.37452]
[1741454467557,0.011597,86227.0,86226.0,0.22572]
[1741454467762,0.011596,86235.0,86211.0,0.011599]
[1741454467763,0.197178,86216.0,86215.0,0.22584]
[1741454468178,0.011598,86216.0,86215.0,0.22584]
[1741454468785,0.011599,86212.0,86211.0,0.00038701]
[1741454468987,0.19718,86216.0,86211.0,0.00038701]
[1741454468988,0.011598,86216.0,86211.0,0.00038701]
[1741454469204,0.011599,86212.0,86211.0,0.00038701]
[1741454469851,0.011599,86214.0,86211.0,0.00038701]
[1741454470055,0.011598,86215.0,86211.0,0.00038701]
[1741454470276,0.011598,86217.0,86211.0,0.00038701]
[1741454470670,0.011598,86221.0,86212.0,0.011599]
[1741454470828,0.011598,86220.0,86211.0,0.00038701]
[1741454471031,0.011599,86212.0,86211.0,0.00038701]
[1741454471591,0.011599,86212.0,86211.0,0.01108094]
[1741454471752,0.011598,86215.0,86211.0,0.00038701]
[1741454471974,0.011599,86212.0,86211.0,0.00038701]
[1741454472139,0.197188,86212.0,86211.0,0.00072581]
[1741454472404,0.011599,86212.0,86211.0,0.00072581]
[1741454472561,0.197188,86212.0,86211.0,0.00072581]
[1741454474119,0.497188,86212.0,86211.0,0.00072581]
[1741454474266,0.58812885,86212.0,86211.0,0.00072581]
[1741454474659,0.59540396,86212.0,86211.0,0.00072581]
[1741454476052,0.59540396,86212.0,86211.0,8.1e-07]
[1741454476287,0.58812885,86212.0,86211.0,8.1e-07]
[1741454477492,0.273588,86212.0,86211.0,8.1e-07]
[1741454477945,0.185566,86223.0,86211.0,8.1e-07]
[1741454478175,0.011597,86222.0,86213.0,0.011599]
[1741454478446,0.011599,86213.0,86212.0,0.01083671]
[1741454478663,0.185565,86223.0,86214.0,0.01083313]
[1741454478885,0.011597,86224.0,86214.0,0.22072]
[1741454479116,0.011597,86224.0,86215.0,0.01079695]
[1741454479373,0.011598,86221.0,86215.0,0.01079695]
[1741454479600,0.011597,86224.0,86215.0,0.01079695]
[1741454479601,0.185563,86224.0,86215.0,0.02327898]
[1741454479809,0.185563,86224.0,86215.0,0.01079695]
[1741454480016,0.011597,86222.0,86215.0,0.01079695]
[1741454480185,0.011597,86224.0,86217.0,0.011598]
[1741454480389,0.011597,86228.0,86218.0,0.011598]
[1741454480595,0.185529,86240.0,86223.0,0.011597]
[1741454480596,0.011596,86232.0,86223.0,0.011597]
[1741454480809,0.185533,86238.0,86229.0,0.011597]
[1741454480974,0.197135,86235.0,86224.0,0.20796002]
[1741454481179,0.185545,86233.0,86230.0,0.0107539]
[1741454481384,0.185545,86233.0,86224.0,0.19716]
[1741454481385,0.011596,86231.0,86224.0,0.19716]
[1741454482177,0.011596,86231.0,86225.0,0.011597]
[1741454482389,0.197141,86233.0,86226.0,0.011597]
[1741454482594,0.011596,86236.0,86225.0,0.011597]
[1741454482796,0.011596,86231.0,86225.0,0.011597]
[1741454483198,0.011598,86219.0,86213.0,0.011599]
[1741454483404,0.011597,86228.0,86213.0,0.011599]
[1741454483405,0.011597,86222.0,86213.0,0.011599]
[1741454483614,0.185578,86217.0,86211.0,8.1e-07]
[1741454484017,0.185582,86215.0,86211.0,8.1e-07]
[1741454484218,0.27000673,86250.0,86211.0,8.1e-07]
[1741454484436,0.27000673,86280.0,86236.0,0.011596]
[1741454484437,0.011595,86242.0,86236.0,0.011596]
[1741454484674,0.0755,86257.0,86236.0,0.011596]
[1741454484675,0.197093,86254.0,86246.0,0.011594]
[1741454484884,0.0459,86268.0,86258.0,0.011593]
[1741454484885,0.132991,86268.0,86258.0,0.011593]
[1741454485250,0.01214127,86289.0,86258.0,0.011593]
[1741454485251,0.011592,86266.0,86259.0,0.00115927]
[1741454485448,0.011592,86266.0,86258.0,0.22204]
[1741454485449,0.011592,86259.0,86258.0,0.22204]
[1741454485649,0.011592,86260.0,86258.0,0.22204]
[1741454485856,0.197079,86259.0,86258.0,0.22204]
[1741454487633,0.197105,86248.0,86247.0,0.2206]
[1741454488208,0.197105,86248.0,86247.0,0.23121878]
[1741454489263,0.197105,86248.0,86247.0,0.01061878]
[1741454489704,0.197128,86238.0,86237.0,0.21952]
[1741454490127,0.011594,86251.0,86238.0,0.185533]
[1741454490334,0.011595,86241.0,86237.0,0.23013032]
[1741454490537,0.011595,86243.0,86237.0,0.24172532]
[1741454490768,0.197119,86242.0,86237.0,0.23013032]
[1741454490994,0.011595,86240.0,86237.0,0.23013032]
[1741454491172,0.011595,86238.0,86237.0,0.23013032]
[1741454491387,0.011596,86235.0,86234.0,0.21924]
[1741454492228,0.197131,86238.0,86050.0,0.4]
[1741454492229,0.197174,86218.0,86206.0,0.0116]
[1741454492478,0.011598,86218.0,86217.0,0.21884]
[1741454493057,0.011598,86218.0,86204.0,0.21836]
[1741454493058,0.197188,86212.0,86204.0,0.21836]
[1741454493458,0.197188,86212.0,86211.0,0.00011694]
[1741454495081,0.18552,86244.0,86235.0,0.011596]
[1741454495330,0.011596,86235.0,86234.0,0.21808]
[1741454495574,0.011596,86233.0,86231.0,0.21804]
[1741454495822,0.197141,86232.0,86231.0,0.21804]
[1741454496552,0.197188,86212.0,86201.0,0.01199884]
[1741454496809,0.197188,86212.0,86211.0,0.21755694]
[1741454497043,0.197188,86212.0,86211.0,0.01165259]
[1741454497273,0.197188,86212.0,86211.0,0.22885259]
[1741454497516,0.197188,86212.0,86211.0,0.00011694]
[1741454497750,0.197188,86212.0,86211.0,0.01165269]
[1741454497985,0.197188,86212.0,86211.0,0.00011694]
[1741454498478,0.197188,86212.0,86211.0,0.01165269]
[1741454498755,0.197188,86212.0,86211.0,0.00011694]
[1741454498756,0.20446207,86212.0,86211.0,0.00011694]
[1741454498995,0.20446207,86212.0,86211.0,0.01165269]
[1741454499227,0.00727407,86212.0,86211.0,0.00011694]
[1741454499458,0.00727407,86212.0,86211.0,0.01171594]
[1741454499700,0.00727407,86212.0,86211.0,0.00011694]
[1741454499985,0.01887307,86212.0,86211.0,0.01168834]
[1741454500222,0.03051216,86212.0,86211.0,0.01168834]
[1741454500453,0.03051216,86212.0,86211.0,0.00011694]
[1741454501798,0.01887307,86212.0,86211.0,0.00011694]
[1741454503307,0.0214808,86212.0,86211.0,0.00011694]
[1741454505123,0.03051164,86212.0,86211.0,0.00011694]
[1741454505966,0.01891264,86212.0,86211.0,0.00011694]
[1741454506208,0.01891264,86212.0,86211.0,0.49846682]
[1741454506430,0.01891264,86212.0,86211.0,0.50889955]
[1741454506633,0.01891264,86212.0,86211.0,0.01170955]
[1741454506847,0.01891264,86212.0,86211.0,0.19730055]
[1741454507052,0.01891264,86212.0,86211.0,0.20889955]
[1741454508489,0.00727407,86212.0,86211.0,0.20889955]
[1741454509938,0.1973436,86218.0,86211.0,0.20889955]
[1741454510145,0.1973436,86218.0,86212.0,0.011599]
[1741454510339,0.011598,86217.0,86212.0,0.02383666]
[1741454510543,0.0001696,86218.0,86213.0,0.197185]
[1741454510747,0.0001696,86218.0,86216.0,0.185579]
[1741454510921,0.0001696,86218.0,86217.0,0.011598]
[1741454511317,0.0001696,86218.0,86217.0,0.0122287]
[1741454511729,0.0001696,86218.0,86215.0,0.011598]
[1741454512145,0.0001696,86218.0,86217.0,0.20632257]
[1741454512355,0.0001696,86218.0,86216.0,0.01219723]
[1741454512550,0.0001696,86218.0,86216.0,0.19777623]
[1741454512731,0.0001696,86218.0,86217.0,0.011598]
[1741454512945,0.0001696,86218.0,86217.0,0.02379327]
[1741454513361,0.0001696,86218.0,86217.0,0.024953]
[1741454513569,0.0001696,86218.0,86217.0,0.02529276]
[1741454514418,0.0001696,86218.0,86217.0,0.56292193]
[1741454514622,0.0001696,86218.0,86217.0,0.56176231]
[1741454515037,0.0001696,86218.0,86217.0,0.56142244]
[1741454516577,0.0001696,86218.0,86217.0,0.46842444]
[1741454516788,0.0001696,86218.0,86217.0,0.48002244]
[1741454519181,0.0001696,86218.0,86217.0,0.46842444]
[1741454519633,0.0117676,86218.0,86217.0,0.66830425]
[1741454519831,0.0117676,86218.0,86217.0,0.21511344]
[1741454521276,0.0117676,86218.0,86217.0,0.01215344]
[1741454521705,0.197188,86212.0,86211.0,0.00011694]
[1741454522907,0.628788,86212.0,86211.0,0.00011694]
[1741454523197,0.6360615,86212.0,86211.0,9.4e-07]
[1741454525382,0.5044615,86212.0,86211.0,9.4e-07]
[1741454528224,0.0072735,86212.0,86211.0,0.01159994]
[1741454528659,0.0072735,86212.0,86211.0,0.02077826]
[1741454528871,0.0072735,86212.0,86211.0,0.0238377]
[1741454529073,0.0072735,86212.0,86211.0,0.02077826]
[1741454529477,0.0072735,86212.0,86211.0,0.02380539]
[1741454529686,0.0072735,86212.0,86211.0,0.02075403]
[1741454529899,0.0072735,86212.0,86211.0,0.32496513]
[1741454530108,0.0072735,86212.0,86211.0,0.40339309]
[1741454530328,0.0072735,86212.0,86211.0,0.45149309]
[1741454530540,0.0001696,86218.0,86211.0,0.45149309]
[1741454530541,0.0001696,86218.0,86217.0,0.197176]
[1741454530959,0.0001696,86218.0,86217.0,0.19833559]
[1741454531159,0.0001696,86218.0,86217.0,0.2093707]
[1741454531389,0.0001696,86218.0,86217.0,0.21053029]
[1741454532002,0.0001696,86218.0,86217.0,0.2093707]
[1741454532994,0.0001696,86218.0,86217.0,0.21053023]
[1741454533195,0.0001696,86218.0,86217.0,0.2093707]
[1741454533408,0.0001696,86218.0,86217.0,0.21053023]
[1741454534585,0.0001696,86218.0,86217.0,0.66559987]
[1741454534788,0.0001696,86218.0,86217.0,1.00514072]
[1741454536934,0.0001696,86218.0,86217.0,1.08684072]
[1741454537880,0.0001696,86218.0,86217.0,1.11184072]
[1741454538320,0.0001696,86218.0,86217.0,1.08684072]
[1741454538521,0.0001696,86218.0,86217.0,1.06184072]
[1741454538696,0.0001696,86218.0,86217.0,1.08684072]
[1741454538933,0.0001696,86218.0,86217.0,1.11184072]
[1741454539054,0.0001696,86218.0,86217.0,1.08684072]
[1741454539257,0.0001696,86218.0,86217.0,1.11184072]
[1741454540257,0.0001696,86218.0,86217.0,1.13561654]
[1741454544949,0.0001696,86218.0,86217.0,0.66559987]
[1741454545119,0.0001696,86218.0,86217.0,0.85559987]
[1741454545317,0.0001696,86218.0,86217.0,1.15559987]
[1741454545925,0.0001696,86218.0,86217.0,1.17014072]
[1741454546345,0.0001696,86218.0,86217.0,1.15559987]
[1741454547329,0.0001696,86218.0,86217.0,1.19514072]
[1741454549147,0.0001696,86218.0,86217.0,1.17014072]
[1741454549710,0.0001696,86218.0,86217.0,1.19514072]
[1741454550526,0.0001696,86218.0,86217.0,1.17014072]
[1741454550722,0.0001696,86218.0,86217.0,1.15559987]
[1741454551685,0.0001696,86218.0,86217.0,0.96559987]
[1741454551885,0.0001696,86218.0,86217.0,1.15239987]
[1741454553166,0.0001696,86218.0,86217.0,1.15159987]
[1741454553912,0.0001696,86218.0,86217.0,0.2094327]
[1741454554219,0.0117676,86218.0,86217.0,0.0121947]
[1741454554455,0.0117676,86218.0,86217.0,0.1972347]
[1741454555477,0.0117676,86218.0,86217.0,0.0121947]
[1741454555840,0.0117676,86218.0,86217.0,0.18436]
[1741454556264,0.0117676,86218.0,86217.0,0.19650035]
[1741454558036,0.0001696,86218.0,86217.0,0.19650035]
[1741454558582,0.0117676,86218.0,86217.0,0.19650035]
[1741454559549,0.01904041,86218.0,86217.0,0.19650035]
[1741454560113,0.00744241,86218.0,86217.0,0.20809835]
[1741454561401,0.197155,86227.0,86217.0,0.20809835]
[1741454561402,0.13498722,86227.0,86217.0,0.20809835]
[1741454561595,0.011598,86220.0,86217.0,0.19650035]
[1741454562052,0.011598,86218.0,86217.0,0.19650035]
[1741454562340,0.185573,86219.0,86217.0,0.19650035]
[1741454562744,0.011598,86220.0,86217.0,0.19650035]
[1741454563365,0.185573,86219.0,86217.0,0.19650035]
[1741454563745,0.011598,86220.0,86211.0,0.00034074]
[1741454563746,0.197185,86214.0,86211.0,0.00034074]
[1741454563949,0.088499,86212.0,86211.0,0.00034074]
[1741454564143,0.137699,86212.0,86211.0,0.00034074]
[1741454564397,0.197185,86214.0,86211.0,0.00034074]
[1741454564398,0.16964809,86214.0,86211.0,0.00034074]